Cogmind - Beta 13 @@@ ROGUE MODE // 2024.07.06 @ 19:53:38 Player: celerysam Result: Destroyed by S-10 Pest with Light Assault Rifle Performance ------------- Evolutions (1) 500 Regions Visited (5) 1000 Robots Destroyed (18) 90 Value Destroyed (568) 568 Prototype IDs (24) 480 Alien Tech Used (0) 0 Bonus (300) 300 TOTAL SCORE: 2938 Bonus ------- Aligned with FarCom 300 Cogmind --------- Core Integrity 0/400 Matter 282/300 Energy 99/100 System Corruption 0% Temperature Cool (0) Movement Walking (190) Ox1 Location -8/Mines Parts ------- > --- POWER (1) -------- (None) > --- PROPULSION (4) --- Carbon-fiber Leg > --- UTILITY (2) ------ Large Storage Unit Modified TNC > --- WEAPON (2) ------- Autogun > --- INVENTORY (15) --- Carbon-fiber Leg Carbon-fiber Leg Armored Wheel Armored Wheel Armored Wheel Weight Redist. System Supersonic Drone Bay (1/1) Heavy Laser EMP Blaster Heavy Hammer Peak State ------------ > --- POWER ------------ Light Ion Engine > --- PROPULSION ------- Advanced Treads Advanced Treads Advanced Treads Advanced Treads > --- UTILITY ---------- Large Storage Unit Modified TNC > --- WEAPON ----------- Light EM Pulse Cannon Enhanced Autogun > --- INVENTORY -------- Light Ion Engine Carbon-fiber Leg Carbon-fiber Leg Carbon-fiber Leg Carbon-fiber Leg Armored Wheel Armored Wheel Armored Wheel Small Storage Unit Weight Redist. System EM Shotgun EM Shotgun Autogun EMP Blaster Heavy Hammer [Rating: 29] Favorites ----------- Power Light Ion Engine Engine Light Ion Engine Power Core Light Nuclear Core Propulsion Armored Wheel Treads Advanced Treads Leg Carbon-fiber Leg Wheel Armored Wheel Utility Large Storage Unit Device Weight Redist. System Storage Large Storage Unit Processor Modified TNC Weapon Light EM Pulse Cannon Energy Gun Medium Laser Energy Cannon Light EM Pulse Cannon Ballistic Gun Enhanced Autogun Launcher EMP Blaster Build | -11 -10 -9 -9 -9 -8 ------- Run | Yrd Mat Mat Min Exi Min Slots Evolved 2 | . . 2 . . . Power . | . . . . . . Propulsion 2 | . . 2 . . . Utility . | . . . . . . Weapon . | . . . . . . Parts Attached 30 | 4 2 11 . 5 8 Power 4 | 1 . 1 . . 2 Engine 3 | 1 . 1 . . 1 Core 1 | . . . . . 1 Reactor . | . . . . . . Propulsion 13 | 2 . 5 . 4 2 Treads 4 | . . . . 4 . Leg 2 | . . . . . 2 Wheel 7 | 2 . 5 . . . Hover . | . . . . . . Flight . | . . . . . . Utility 4 | 1 . 2 . 1 . Device 1 | . . 1 . . . Storage 2 | 1 . 1 . . . Processor 1 | . . . . 1 . Hackware . | . . . . . . Protection . | . . . . . . Artifact . | . . . . . . Weapon 9 | . 2 3 . . 4 Energy Gun 4 | . 2 . . . 2 Energy Cannon 2 | . . 2 . . . Ballistic Gun 2 | . . 1 . . 1 Ballistic Cannon . | . . . . . . Launcher 1 | . . . . . 1 Special Weapon . | . . . . . . Impact Weapon . | . . . . . . Slashing Weapon . | . . . . . . Piercing Weapon . | . . . . . . Special Melee Weapon . | . . . . . . Unidentified Prototypes 1 | . . 1 . . . Parts Lost 14 | . . 2 . . 12 Power 4 | . . 1 . . 3 Propulsion 5 | . . . . . 5 Utility . | . . . . . . Weapon 5 | . . 1 . . 4 Highest Loss Streak 12 | . . 2 . . 12 To Critical Strikes . | . . . . . . Average Slot Usage (%) 95 | . 80 97 100 100 82 Engine 10 | . 14 10 11 11 8 Treads 18 | . . . . 29 29 Wheel 21 | . 28 43 44 14 . Device 3 | . . 1 11 3 . Storage 12 | . 14 19 11 11 11 Processor 5 | . . . . 7 11 Energy Gun 4 | . 23 11 . . 4 Energy Cannon 8 | . . 9 11 11 4 Ballistic Gun 7 | . . 1 11 11 10 Naked Turns . | . . . . . . Heaviest Build 36 | 10 13 36 30 30 31 Greatest Support 88 | 26 26 54 48 88 88 Greatest Overweight (x) 1 | 1 . . . . 1 Average Overweight (x) . | . . . . . . Largest Inventory Capacity 15 | 8 8 15 15 15 15 Average Capacity 14 | 6 8 14 15 15 15 Most Carried 15 | 8 8 15 15 15 15 Average Carried 13 | 4 7 12 15 14 13 Final Capacity 15 | 8 8 15 15 15 15 Final Carried 15 | 8 8 15 15 15 10 Class Distribution -------------------- 100% | Mutant Dominant Class ---------------- Mutant | -10/Materials Mutant | -9/Materials Mutant | -9/Mines Mutant | -9/Exiles Mutant | -8/Mines Resources | -11 -10 -9 -9 -9 -8 ----------- Run | Yrd Mat Mat Min Exi Min Matter Collected 555 | . 55 284 40 . 176 Remotely . | . . . . . . Salvage Created 666 | . 133 208 67 . 258 Parts 32 | . 7 10 5 . 10 Haulers Intercepted . | . . . . . . Recyclers Shooed . | . . . . . . Parts Field Recycled . | . . . . . . Retrieved Matter . | . . . . . . Parts Self-Destructed . | . . . . . . Prevented . | . . . . . . Kills | -11 -10 -9 -9 -9 -8 ------- Run | Yrd Mat Mat Min Exi Min Combat Hostiles Destroyed 17 | . 3 4 4 . 6 Guns 9 | . 3 . 3 . 3 Cannons 3 | . . 1 1 . 1 AOE 2 | . . 2 . . . Classes Destroyed 5 | . 1 2 1 . 1 Watcher 1 | . . 1 . . . Swarmer 6 | . . . 4 . 2 Grunt 8 | . 3 2 . . 3 Sentry 2 | . . 2 . . . Hunter 1 | . . . . . 1 Best Kill Streak 4 | . 3 2 4 . 3 Combat Bots Only 4 | . 3 2 4 . 3 Max Kills in Single Turn 2 | . 1 1 2 . 1 Gunslinging . | . . . . . . Exploded 1 | . . 1 . . . Melee . | . . . . . . Uniques/NPCs Destroyed . | . . . . . . Combat | -11 -10 -9 -9 -9 -8 -------- Run | Yrd Mat Mat Min Exi Min Hostile Shots Fired 262 | . 18 35 20 . 189 Missed 64 | . 3 8 8 . 45 Damage Taken 2578 | . 181 445 101 . 1851 Core 441 | . 33 44 19 . 345 Absorbed by Shields . | . . . . . . Core Remaining (%) 93 | 100 86 . . . . Volleys Fired 59 | . 7 16 5 . 31 Largest 2 | . 2 2 2 . 2 Hottest 106 | . 90 106 81 . 81 Shots Fired 104 | . 14 32 10 . 48 Gun 72 | . 14 16 5 . 37 Cannon 30 | . . 16 5 . 9 Launcher 2 | . . . . . 2 Special . | . . . . . . Kinetic 35 | . . 1 5 . 29 Thermal 29 | . 14 15 . . . Explosive . | . . . . . . Electromagnetic 40 | . . 16 5 . 19 Robot Hit Streak 9 | . 4 9 8 . 9 Robot Miss Streak 4 | . 2 4 1 . 3 Penetration Max . | . . . . . . Secondary Targets . | . . . . . . Shots Hit Robots 69 | . 9 20 6 . 34 Core Hits 30 | . 7 6 4 . 13 Critical Kills . | . . . . . . Critical Parts Destroyed . | . . . . . . Critical Strikes 2 | . . 2 . . . Burn 1 | . . 1 . . . Corrupt 1 | . . 1 . . . Melee Attacks . | . . . . . . Impact . | . . . . . . Slashing . | . . . . . . Piercing . | . . . . . . Sneak Attacks . | . . . . . . Combat Hostiles . | . . . . . . Follow-up Attacks . | . . . . . . Damage Inflicted 1429 | . 105 495 146 . 683 Guns 719 | . 105 117 68 . 429 Cannons 544 | . . 278 78 . 188 Explosions 165 | . . 99 . . 66 Melee . | . . . . . . Ramming 1 | . . 1 . . . Kinetic 393 | . . 15 68 . 310 Thermal 306 | . 105 201 . . . Explosive . | . . . . . . Electromagnetic 729 | . . 278 78 . 373 Impact . | . . . . . . Slashing . | . . . . . . Piercing . | . . . . . . Highest Corruption . | . . . . . . Average Corruption . | . . . . . . Corruption Purged . | . . . . . . Corruption Blocked . | . . . . . . Overload Shots . | . . . . . . Overflow Damage . | . . . . . . Projectiles . | . . . . . . Explosions . | . . . . . . Melee . | . . . . . . Knockbacks . | . . . . . . Impact . | . . . . . . Kinetic . | . . . . . . Secondary . | . . . . . . Self-Inflicted Damage 30 | . . 30 . . . Shots 1 | . . 1 . . . Rammed 1 | . . 1 . . . Targets Rammed 1 | . . 1 . . . Kicked . | . . . . . . Crushed . | . . . . . . Highest Temperature 273 | . 214 206 78 . 273 Average Temperature 83 | . 129 76 40 . 80 Received Heat Transfer 915 | . 102 156 . . 657 Siege Activations . | . . . . . . Robots Corrupted 3 | . . 1 . . 2 Combat Hostiles 3 | . . 1 . . 2 Parts Fried 4 | . . 2 . . 2 Impact Corruptions . | . . . . . . Robots Melted . | . . . . . . Combat Hostiles . | . . . . . . Parts Melted . | . . . . . . Heat Transferred 793 | . 273 520 . . . Parts Sabotaged . | . . . . . . Parts Stolen . | . . . . . . Parts Stripped . | . . . . . . Power Chain Reactions 3 | . . 3 . . . Alert | -11 -10 -9 -9 -9 -8 ------- Run | Yrd Mat Mat Min Exi Min Peak Influence 208 | . 140 208 186 . 115 Initial 81 | . . 59 81 . . Average 103 | . 54 126 179 . 80 Maximum Alert Level 1 | . . 1 . . . Low Security (%) 96 | 100 100 91 100 . 100 Level 1 3 | . . 8 . . . Level 2 . | . . . . . . Level 3 . | . . . . . . Level 4 . | . . . . . . Level 5 . | . . . . . . High Security . | . . . . . . Max Security . | . . . . . . Squads Dispatched 2 | . 1 1 . . . Investigation . | . . . . . . Extermination . | . . . . . . Reinforcement 2 | . 1 1 . . . Assault . | . . . . . . Garrison . | . . . . . . Intercept . | . . . . . . Searches Triggered . | . . . . . . Construction Impeded . | . . . . . . Haulers Reinforced . | . . . . . . Active Scanning Responses . | . . . . . . Cargo Convoy Interrupts . | . . . . . . Stealth | -11 -10 -9 -9 -9 -8 --------- Run | Yrd Mat Mat Min Exi Min Distress Signals . | . . . . . . Communications Jammed . | . . . . . . Distress Signals . | . . . . . . Times Spotted 39 | . 10 11 4 . 14 Peak Tracking Total 6 | . 6 5 4 . 5 Tactical Retreats 4 | . 1 . . . 3 Traps | -11 -10 -9 -9 -9 -8 ------- Run | Yrd Mat Mat Min Exi Min Traps Triggered . | . . . . . . Indirectly . | . . . . . . Trap Hack Attempts . | . . . . . . Triggered . | . . . . . . Disarmed . | . . . . . . Reprogrammed . | . . . . . . Reused . | . . . . . . Traps Extracted . | . . . . . . Installed . | . . . . . . Triggered . | . . . . . . Machines | -11 -10 -9 -9 -9 -8 ---------- Run | Yrd Mat Mat Min Exi Min Machines Disabled 2 | . . . . . 2 Max in Single Turn 1 | . . . . . 1 Machines Repaired . | . . . . . . Machines Dismantled . | . . . . . . Machines Sabotaged . | . . . . . . Overloaded Fab Kills . | . . . . . . Hacking | -11 -10 -9 -9 -9 -8 --------- Run | Yrd Mat Mat Min Exi Min Machines Accessed 5 | . 1 . . 4 . Terminals 1 | . 1 . . . . Fabricators . | . . . . . . Repair Stations . | . . . . . . Recycling Units . | . . . . . . Scanalyzers . | . . . . . . Garrison Access . | . . . . . . Total Hacks 15 | . 1 . . 14 . Successful 14 | . . . . 14 . Failed 1 | . 1 . . . . Catastrophic . | . . . . . . Database Lockouts . | . . . . . . Manual 1 | . . . . 1 . Terminals 1 | . 1 . . . . Fabricators . | . . . . . . Repair Stations . | . . . . . . Recycling Units . | . . . . . . Scanalyzers . | . . . . . . Garrison Access . | . . . . . . Terminal Hacks 14 | . . . . 14 . Record 13 | . . . . 13 . Derelict Proto ID Bank 1 | . . . . 1 . Fabricator Hacks . | . . . . . . Repair Station Hacks . | . . . . . . Recycling Unit Hacks . | . . . . . . Scanalyzer . | . . . . . . Garrison Access Hacks . | . . . . . . Unauthorized Hacks . | . . . . . . Terminals . | . . . . . . Fabricators . | . . . . . . Repair Stations . | . . . . . . Recycling Units . | . . . . . . Scanalyzers . | . . . . . . Garrison Access . | . . . . . . Data Cores Recovered . | . . . . . . Used . | . . . . . . Hacking Detections . | . . . . . . Full Trace Events . | . . . . . . Feedback Events . | . . . . . . Feedback Blocked . | . . . . . . Robot Schematics Acquired . | . . . . . . Robots Built . | . . . . . . Authchips . | . . . . . . Time . | . . . . . . Total Robot Build Rating . | . . . . . . Part Schematics Acquired . | . . . . . . Parts Built . | . . . . . . Authchips . | . . . . . . Time . | . . . . . . Total Part Build Rating . | . . . . . . Parts Repaired . | . . . . . . Time . | . . . . . . Parts Recycled . | . . . . . . Recycled Matter . | . . . . . . Retrieved Matter . | . . . . . . Retrieved Components . | . . . . . . Parts Scanalyzed . | . . . . . . Part Schematics Acquired . | . . . . . . Parts Damaged . | . . . . . . Bothacking | -11 -10 -9 -9 -9 -8 ------------ Run | Yrd Mat Mat Min Exi Min Used RIF Installer . | . . . . . . Robots Hacked . | . . . . . . Non-combat . | . . . . . . Combat . | . . . . . . Robot Hacks Applied . | . . . . . . Relay Couplers Released . | . . . . . . Fabnet Peak Effective % . | . . . . . . Robots Rewired . | . . . . . . Allies Hacked . | . . . . . . Hacks Repelled . | . . . . . . Allies | -11 -10 -9 -9 -9 -8 -------- Run | Yrd Mat Mat Min Exi Min Total Allies . | . . . . . . Largest Group . | . . . . . . Highest-Rated Group . | . . . . . . Highest-Rated Ally . | . . . . . . Total Orders . | . . . . . . Ally Attacks . | . . . . . . Total Damage . | . . . . . . Kills . | . . . . . . Allies Corrupted . | . . . . . . Allies Melted . | . . . . . . Intel | -11 -10 -9 -9 -9 -8 ------- Run | Yrd Mat Mat Min Exi Min Robot Analysis Total . | . . . . . . Derelict Logs Recovered 3 | . . . 3 . . Drone Launches . | . . . . . . Drone Recoveries . | . . . . . . Exploration | -11 -10 -9 -9 -9 -8 ------------- Run | Yrd Mat Mat Min Exi Min Turns Passed 1435 | 58 86 300 117 645 229 Spaces Moved 1020 | 52 68 165 116 522 97 Core 14 | 14 . . . . . Treads 378 | . . . . 296 82 Legs 15 | . . . . . 15 Wheels 613 | 38 68 165 116 226 . Hover . | . . . . . . Flight . | . . . . . . Fastest Speed 50 | 50 90 87 90 90 120 Average Speed 111 | 82 90 89 90 121 153 Slowest Speed 225 | 100 90 90 90 145 225 Overloaded Moves . | . . . . . . Propulsion Burnouts . | . . . . . . Robots Hopped . | . . . . . . Cave-ins Triggered . | . . . . . . Exploration Rate (%) 28 | 4 16 17 20 91 24 Regions Visited 5 Branch Regions 3 Pre-discovered Areas 1 | . . . . 1 . Known Exits Taken 1 | . . . 1 . . Unknown Exits Taken 4 | 1 1 1 . 1 . Scrap Searched 1 | . . . 1 . . Spaces Dug . | . . . . . . Terrain Destroyed 7 | . . 7 . . . Melee . | . . . . . . Projectile . | . . . . . . AOE 7 | . . 7 . . . Terrain Rammed . | . . . . . . Walls Destroyed . | . . . . . . Machines Disabled . | . . . . . . Actions | -11 -10 -9 -9 -9 -8 --------- Run | Yrd Mat Mat Min Exi Min Total 1221 | 66 78 286 120 533 138 Wait 69 | . . 66 . 3 . Move 1015 | 51 67 164 115 521 97 Hop . | . . . . . . Pick Up 34 | 11 2 17 . 2 2 Fast Attach 5 | 1 . 4 . . . Attach 13 | 3 2 1 . . 7 Detach . | . . . . . . Swap 12 | . . 6 . 5 1 Drop 13 | . . 11 . 2 . Fire 59 | . 7 16 5 . 31 Melee . | . . . . . . Ram 1 | . . 1 . . . Kick . | . . . . . . Crush . | . . . . . . Escape Stasis . | . . . . . . Rewire . | . . . . . . Trap . | . . . . . . Miscellaneous . | . . . . . . Route ------- -11/Scrapyard -10/Materials -9/Materials -9/Mines (discovered 2 exits: *Exi / [*Zio]) -9/Exiles -8/Mines History --------- Turn | Location | Event 10 | -11/Scrapyard | Discovered new exit (range 16) 59 | -11/Scrapyard | Entered Materials 104 | -10/Materials | Discovered new exit (range 9) 145 | -10/Materials | Entered another Materials area 145 | -9/Materials | Evolved 2 slots: Propulsion x2 308 | -9/Materials | Build established: Mutant 440 | -9/Materials | Discovered new exit (range 6) 445 | -9/Materials | Entered Mines 469 | -9/Mines | Identified exit to Exiles 496 | -9/Mines | Learned Materials trap positions 501 | -9/Mines | Learned Materials emergency access door positions 523 | -9/Mines | A Derelict revealed a hidden shortcut to a safe place 558 | -9/Mines | Deemed a non-threat by the Exiles lab entrance 562 | -9/Mines | Entered Exiles 585 | -9/Exiles | Met 8R-AWN 601 | -9/Exiles | Met EX-HEX 628 | -9/Exiles | Met EX-BIN 641 | -9/Exiles | Aligned with FarCom system 642 | -9/Exiles | Given EX-Vault access code 672 | -9/Exiles | Opened EX-Vault 718 | -9/Exiles | Warned to stay clear of 0b10 Research branches 776 | -9/Exiles | Found Modified TNC 780 | -9/Exiles | Found Supersonic Drone Bay 922 | -9/Exiles | Met EX-DEC 972 | -9/Exiles | Visited The Gauntlet 1151 | -9/Exiles | Learned location of Zion (-7) 1191 | -9/Exiles | Discovered new exit (range 14) 1207 | -9/Exiles | Stole two prototypes: Modified TNC, Supersonic Drone Bay 1207 | -9/Exiles | Entered Mines 1318 | -8/Mines | Core integrity fell below 50% 1419 | -8/Mines | Core integrity fell below 20% 1436 | -8/Mines | Destroyed by S-10 Pest with Light Assault Rifle Last Messages --------------- 01406_ G-50 Soldier destroyed. 01409_ K-01 Serf collects debris. 01412_ Penetrated by Slug. 01412_ C-30 ARC bursts open, deploying its payload. 01412_ S-10 Pest unfolds itself. 01414_ K-01 Serf collects debris. 01415_ Penetrated by Slug. 01418_ K-01 Serf collects debris. 01418_ Acquired Hvy. Laser. 01419_ EM Shotgun destroyed. 01422_ K-01 Serf collects debris. 01422_ Slug penetrates Wall. 01425_ H-55 Commando destroyed. 01426_ Acquired 51 matter. 01426_ K-01 Serf collects debris. 01427_ S-10 Pest destroyed. 01428_ Acquired 10 matter. 01429_ K-01 Serf collects debris. 01436_ Carbon-fiber Leg destroyed. 01436_ S-10 Pest destroyed. Map ----- +----------------------------------------------------+ | ?????????????????????????????????????????????????? | | ?????????????????????????????????????????????????? | | ?????????????????????????????????????????????????? | | ?????????????????????????????????????????????????? | | ?????????????????????????????????????????????????? | | ?????????????????????????????????????????????????? | | ?????????????????????????????????????????????????? | | ?????????????????????????????????????????????????? | | ?????????????????????????????????????????????????? | | ?????????????????????????????????????????????????? | | ?????????????????????????????????????????????????? | | ?????????????????????????????????????????????????? | | ????????????????????????####?????????????????????? | | ???????????????????????? #??????###????????????? | | ????????????????????????? #????## ##???????????? | | ?????????????????????????#r#???# #???????????? | | ?????????????????????????# ##?# #???????????? | | ????????????????????????## ## #???????????? | | ???????????????????????## #???????????? | | ???????????????????????# #????????????? | | ??????????????????????## ##????????????? | | ??????????????????????# ### ##?????????????? | | ??????????????????????# % ##???###??????????????? | | ??????????????????????# s=##?????????????????????? | | ?????????????????????##=s=#??????????????????????? | | ???????#########?????# k=@#??????????????????????? | | ??????? #?????##* ##??????????????????????? | | ??????# #???#### ##???????????????????????? | | ??????# #???# #????????????????????????? | | ??????# """ #???# ## #???????????s????????????? | | ??????# """ #?### ## #???????????ss???????????? | | ??????# "" #?# ## #????????????????????????? | | ??????# #?# #### ???????????s????????????? | | ??????# #?# #?? ????????????????????????? | | ??????# ### #?? ????????????????????????? | | ??????# !% [*=#?? ????????????????????????? | | ??????# = #####?? ????????????????????????? | | ??????# #??????# ????????????????????????? | | ??????#### ####??????? #????????????????????????? | | ?????????# #???????#?? ?????????????????????????? | | ?????????# #??????? ?? ?????????????????????????? | | ?????????# #??????? ??#?????????????????????????? | | ?????????# #??????# #???????????????????????????? | | ?????????# #??????# #???????????????????????????? | | ????????## ##?????# #???????????????????????????? | | ????????# ##????# #???????????????????????????? | | ????????# ##???# #???####????????????????????? | | ????????## ##??# #??## ##???????????????????? | | ?????????# ##?# ####! #???????????????????? | | ?????????# ### [%= #???????????????????? | +----------------------------------------------------+ Best States ------------- Heat Dissipation 28 Energy Generation 14 Energy Capacity 250 Matter Stores 300 Matter Capacity 300 Sight Range 16 Terrain Scan Density 10 Additional Mass Support 6 Evasion (%) 42 Recoil Reduction 4 Item Schematics ----------------- None Robot Schematics ------------------ None Fabricated ------------ Nothing Alien Tech Used ----------------- None Achievements -------------- None Challenges ------------ None Game ------ Seed BackupServoTriangulator Manual? 0 Play Time 00:24:55 Cumulative 88.5 hours Start 2024.07.06 @ 16:35:14 End 2024.07.06 @ 19:53:38 Sessions 3 Manual Loads 0 Difficulty Rogue Special Mode None Game No. 127 Rogue 127 Adventurer 0 Explorer 0 Win Type - Total 0 Types 0/0/0/0/0/0/0/0/0 Lore% 39 Gallery% 53 Achievement% 34 Wizard Run 0 Options --------- Layout 0 ASCII 0 Keyboard 0 Movement Mouse Keybinds 0 Fullscreen 1 Font 24/Smallcaps Map View 76x50 Zoom Use 0% Tactical HUD 1 Map Filters NONE Filters NONE Steam 1 RUN: 16d3048f-b1fb-4d44-8c6b-9073ac754170